fUSD/lending_fUSD_20250503
["ID","MTS","AMOUNT","RATE_DAILY","PERIOD"]
[359755950,1746301847009,-450.0,0.0001987,2]
[359755951,1746301847019,-476.75,0.0001987,2]
[359755952,1746301847028,-450.0,0.0001987,2]
[359755953,1746301847037,-453.29,0.0001987,2]
[359755954,1746301847047,-1823.48,0.0001987,2]
[359755955,1746301847056,-512.2,0.0001987,2]
[359755956,1746301847067,-450.0,0.0001987,2]
[359755957,1746301847076,-1837.43,0.0001987,2]
[359755958,1746301847086,-510.62,0.0001987,2]
[359755959,1746301847095,-450.0,0.0001987,2]
[359755960,1746301847105,-620.45,0.0001987,2]
[359755961,1746301847115,-450.0,0.0001987,2]
[359755962,1746301847124,-1350.13,0.0001987,2]
[359755963,1746301847134,-471.62,0.0001987,2]
[359755964,1746301847146,-831.59,0.0001987,2]
[359755965,1746301847156,-450.0,0.00019871,2]
[359755966,1746301847165,-450.0,0.00019871,2]
[359755967,1746301847175,-486.14,0.00019871,2]
[359755968,1746301847184,-450.0,0.00019871,2]
[359755969,1746301847193,-450.0,0.00019871,2]
[359755970,1746301847203,-398.10757731,0.00019871,2]
[359755971,1746301847212,-179.77,0.00019871,2]
[359755972,1746301847222,-450.0,0.00019871,2]
[359755973,1746301847232,-519.49,0.00019871,2]
[359755974,1746301847242,-687.22,0.00019871,2]
[359755975,1746301847251,-521.43,0.00019871,2]
[359755976,1746301847261,-450.0,0.00019871,2]
[359755977,1746301847270,-222.63340669,0.00019871,2]
[359755978,1746301847279,-450.0,0.00019871,2]
[359755979,1746301847289,-450.0,0.00019871,2]
[359755980,1746301847298,-450.0,0.00019871,2]
[359755981,1746301847308,-450.0,0.00019871,2]
[359755982,1746301847318,-450.0,0.00019871,2]
[359755983,1746301847327,-450.0,0.00019871,2]
[359755984,1746301847336,-450.0,0.00019871,2]
[359755985,1746301847346,-450.0,0.00019871,2]
[359755986,1746301847355,-475.12,0.00019871,2]
[359755987,1746301847364,-450.0,0.00019871,2]
[359755988,1746301847373,-450.0,0.00019871,2]
[359755989,1746301847383,-450.0,0.00019871,2]
[359755990,1746301847392,-450.0,0.00019871,2]
[359755991,1746301847402,-564.45,0.00019871,2]
[359755992,1746301847411,-869.18,0.00019871,2]
[359755993,1746301847421,-450.0,0.00019871,2]
[359755994,1746301847430,-450.0,0.00019871,2]
[359755995,1746301847440,-450.0,0.00019871,2]
[359755996,1746301847449,-450.0,0.00019871,2]
[359755997,1746301847458,-450.0,0.00019871,2]
[359755998,1746301847467,-869.32,0.00019871,2]
[359755999,1746301847477,-613.27,0.00019871,2]
[359756000,1746301847486,-450.0,0.00019871,2]
[359756001,1746301847497,-450.0,0.00019871,2]
[359756002,1746301847506,-450.0,0.00019871,2]
[359756003,1746301847516,-450.0,0.00019871,2]
[359756004,1746301847526,-450.0,0.00019871,2]
[359756005,1746301847535,-584.92,0.00019871,2]
[359756006,1746301847545,-450.0,0.00019871,2]
[359756007,1746301847554,-450.0,0.00019871,2]
[359756008,1746301847563,-450.0,0.00019871,2]
[359756009,1746301847573,-450.0,0.00019871,2]
[359756010,1746301847582,-505.37,0.00019871,2]
[359756011,1746301847592,-450.0,0.00019871,2]
[359756012,1746301847601,-450.0,0.00019871,2]
[359756013,1746301847610,-555.99,0.00019871,2]
[359756014,1746301847619,-529.98,0.00019871,2]
[359756015,1746301847628,-615.66,0.00019871,2]
[359756016,1746301847637,-450.0,0.00019871,2]
[359756017,1746301847647,-450.0,0.00019871,2]
[359756018,1746301847656,-639.74,0.00019871,2]
[359756019,1746301847666,-450.0,0.00019871,2]
[359756020,1746301847675,-450.0,0.00019871,2]
[359756021,1746301847685,-709.68,0.00019871,2]
[359756022,1746301847694,-450.0,0.00019871,2]
[359756023,1746301847703,-450.0,0.00019871,2]
[359756024,1746301847713,-167.96267066,0.00019871,2]
[359756025,1746301847723,-450.0,0.00019871,2]
[359756026,1746301847733,-1061.78,0.00019871,2]
[359756027,1746301847743,-450.0,0.00019871,2]
[359756028,1746301847752,-450.0,0.00019871,2]
[359756029,1746301847762,-670.58,0.00019871,2]
[359756030,1746301847771,-611.52,0.00019871,2]
[359756031,1746301847781,-860.28,0.00019871,2]
[359756032,1746301847790,-458.93,0.00019871,2]
[359756033,1746301847798,-494.41,0.00019871,2]
[359756034,1746301847808,-450.0,0.00019871,2]
[359756035,1746301847817,-450.0,0.00019871,2]
[359756036,1746301847826,-1210.2,0.00019871,2]
[359756037,1746301847835,-519.35,0.00019871,2]
[359756038,1746301847845,-450.0,0.00019871,2]
[359756039,1746301847854,-454.78459354,0.00019871,2]
[359756040,1746301847863,-450.0,0.00019871,2]
[359756041,1746301847872,-881.57,0.00019871,2]
[359756042,1746301847881,-450.0,0.00019871,2]
[359756043,1746301847891,-450.0,0.00019871,2]
[359756044,1746301847899,-450.0,0.00019871,2]
[359756045,1746301847909,-450.0,0.00019871,2]
[359756046,1746301847918,-470.63,0.00019871,2]
[359756047,1746301847927,-450.0,0.00019871,2]
[359756048,1746301847936,-450.0,0.00019871,2]
[359756049,1746301847946,-548.94,0.00019871,2]
[359756050,1746301847955,-450.0,0.00019871,2]
[359756051,1746301847964,-450.0,0.00019871,2]
[359756052,1746301847974,-450.0,0.00019871,2]
[359756053,1746301847983,-555.4,0.00019871,2]
[359756054,1746301847992,-450.0,0.00019871,2]
[359756055,1746301848001,-693.22,0.00019871,2]
[359756056,1746301848009,-2081.08,0.00019871,2]
[359756057,1746301848019,-450.0,0.00019871,2]
[359756058,1746301848028,-878.16,0.00019871,2]
[359756059,1746301848037,-450.0,0.00019871,2]
[359756060,1746301848047,-450.0,0.00019871,2]
[359756061,1746301848056,-479.51,0.00019871,2]
[359756062,1746301848065,-450.0,0.00019871,2]
[359756063,1746301848074,-450.0,0.00019871,2]
[359756064,1746301848084,-1922.31,0.00019871,2]
[359756065,1746301848093,-725.14,0.00019871,2]
[359756066,1746301848102,-589.55,0.00019871,2]
[359756067,1746301848112,-450.0,0.00019871,2]
[359756068,1746301848121,-450.0,0.00019871,2]
[359756069,1746301848131,-450.0,0.00019871,2]
[359756070,1746301848140,-2040.18,0.00019871,2]
[359756071,1746301848153,-381.10628559,0.00019871,2]
[359756072,1746301848162,-450.0,0.00019871,2]
[359756073,1746301848172,-450.0,0.00019871,2]
[359756074,1746301848183,-451.76,0.00019871,2]
[359756075,1746301848192,-575.12,0.00019871,2]
[359756076,1746301848202,-1247.41,0.00019871,2]
[359756077,1746301848211,-450.0,0.00019871,2]
[359756078,1746301848222,-450.0,0.00019871,2]
[359756079,1746301848231,-450.0,0.00019871,2]
[359756080,1746301848241,-518.19,0.00019871,2]
[359756081,1746301848250,-490.32,0.00019871,2]
[359756082,1746301848260,-483.55,0.00019871,2]
[359756083,1746301848270,-450.0,0.00019871,2]
[359756084,1746301848280,-450.0,0.00019871,2]
[359756085,1746301848289,-450.0,0.00019871,2]
[359756086,1746301848298,-450.0,0.00019871,2]
[359756087,1746301848308,-450.0,0.00019871,2]
[359756088,1746301848317,-450.0,0.00019872,2]
[359756089,1746301848326,-500.0,0.00019873,2]
[359756090,1746301848336,-505.01338726,0.00019873,2]
[359756091,1746301848345,-502.81057893,0.00019873,2]
[359756092,1746301848354,-500.0,0.00019873,2]
[359756093,1746301848363,-500.0,0.00019873,2]
[359756094,1746301848373,-500.0,0.00019873,2]
[359756095,1746301848382,-1000.0,0.00019874,2]
[359756096,1746301848391,-1000.0,0.00019874,2]
[359756097,1746301848400,-1000.0,0.00019874,2]
[359756098,1746301848411,-1000.0,0.00019874,2]
[359756099,1746301848420,-1000.0,0.00019874,2]
[359756100,1746301848429,-1000.0,0.00019874,2]
[359756101,1746301848439,-1000.0,0.00019874,2]
[359756102,1746301848448,-1000.0,0.00019874,2]
[359756103,1746301848457,-1000.0,0.00019874,2]
[359756104,1746301848467,-539.61120459,0.00019874,2]
[359756105,1746301848476,-416.1,0.00019874,2]
[359756106,1746301848486,-385.77527078,0.00019884,2]
[359756107,1746301848495,-258.7436912,0.00019884,2]
[359756108,1746301848505,-181.57583241,0.00019884,2]
[359756109,1746301848514,-258.38763662,0.00019884,2]
[359756110,1746301848524,-316.91735972,0.00019884,2]
[359756111,1746301848534,-181.12058383,0.00019884,2]
[359756112,1746301848544,-500.0,0.00019884,2]
[359756113,1746301848554,-500.0,0.00019884,2]
[359756114,1746301848563,-500.0,0.00019884,2]
[359756115,1746301848574,-500.0,0.00019884,2]
[359756116,1746301848583,-500.0,0.00019884,2]
[359756117,1746301848593,-500.0,0.00019884,2]
[359756118,1746301848602,-500.0,0.00019884,2]
[359756119,1746301848611,-500.0,0.00019884,2]
[359756120,1746301848621,-316.03882372,0.00019884,2]
[359756121,1746301848630,-500.0,0.00019884,2]
[359756122,1746301848639,-500.0,0.00019884,2]
[359756123,1746301848648,-500.0,0.00019884,2]
[359756124,1746301848657,-500.0,0.00019884,2]
[359756125,1746301848666,-209.09092274,0.00019884,2]
[359756126,1746301848676,-198.78392716,0.00019885,2]
[359756127,1746301848685,-150.0,0.00019885,2]
[359756128,1746301848694,-2356.525,0.00019886,2]
[359756129,1746301848703,-168.088,0.00019886,2]
[359756130,1746301848713,-181.48333988,0.000199,2]
[359756131,1746301848724,-214.71036794,0.000199,2]
[359756132,1746301848733,-2069.37,0.000199,2]
[359756133,1746301848742,-2629.95573045,0.000199,2]
[359756134,1746301848751,-199.89637734,0.000199,2]
[359756135,1746301848760,-10311.00277499,0.000199,2]
[359756136,1746301848770,-5149.16434974,0.000199,2]
[359756137,1746301848780,-1332.0,0.000199,2]
[359756138,1746301848789,-3277.74102835,0.000199,2]
[359756139,1746301848799,-500.0,0.0001997,2]
[359756140,1746301848808,-886.47921775,0.0001997,2]
[359756141,1746301848818,-1000.0,0.0001997,2]
[359756142,1746301848827,-1000.0,0.0001997,2]
[359756143,1746301848837,-1000.0,0.0001997,2]
[359756144,1746301848846,-1000.0,0.0001997,2]
[359756145,1746301848856,-1914.02013276,0.0001997,2]
[359756146,1746301848865,-4648.0,0.00019973,2]
[359756147,1746301848875,-330.0,0.00019973,2]
[359756148,1746301848884,-503.14930803,0.00019973,2]
[359756149,1746301848894,-500.0,0.00019973,2]
[359756150,1746301848903,-500.0,0.00019973,2]
[359756151,1746301848913,-500.0,0.00019973,2]
[359756152,1746301848923,-177.75275273,0.00019973,2]
[359756153,1746301848933,-502.98408913,0.00019973,2]
[359756154,1746301848942,-500.0,0.00019973,2]
[359756155,1746301848952,-500.0,0.00019973,2]
[359756156,1746301848961,-500.0,0.00019973,2]
[359756157,1746301848971,-500.0,0.00019973,2]
[359756158,1746301848980,-500.0,0.00019973,2]
[359756159,1746301848990,-1649.59541145,0.00019985,2]
[359756160,1746301849000,-212.03805716,0.00019985,2]
[359756161,1746301849010,-500.0,0.00019985,2]
[359756162,1746301849019,-503.31962313,0.00019985,2]
[359756163,1746301849028,-11425.5666685,0.00019986,2]
[359756164,1746301849038,-33280.8378614,0.00019986,2]
[359756165,1746301849047,-27918.4315668,0.00019986,2]
[359756166,1746301849056,-22556.0252722,0.00019986,2]
[359756167,1746301849065,-419477.6027601,0.00019986,2]
[359756168,1746301849075,-351349.9320709,0.00019986,2]
[359756169,1746301849084,-283222.2613818,0.00019986,2]
[359756170,1746301849093,-600.23325229,0.0001999,2]
[359756171,1746301849103,-600.23325229,0.0001999,2]
[359756172,1746301849112,-984.61165888,0.00019999,2]
[359756173,1746301849121,-300.0,0.00019999,2]
[359756174,1746301849131,-500.0,0.00019999,2]
[359756175,1746301849142,-366.20032378,0.00019999,2]
[359756176,1746301849152,-500.0,0.00019999,2]
[359756177,1746301849161,-666.0,0.00019999,2]
[359756178,1746301849170,-56807.51,0.00019999,2]
[359756179,1746301849179,-18723.24018754,0.00019999,2]
[359756180,1746301849188,-521.49175367,0.0002,2]
[359756181,1746301849198,-2454829.31721718,0.0002,2]
[359756182,1746301849207,-2000.0,0.0002,4]
[359756183,1746301849216,-2000.0,0.0002,4]
[359756184,1746301849225,-2000.0,0.0002,4]
[359756185,1746301849234,-2000.0,0.0002,4]
[359756186,1746301849244,-2000.0,0.0002,4]
[359756187,1746301849253,-2000.0,0.0002,4]
[359756188,1746301849262,-287038.15775136,0.0002,2]
[359756189,1746301849708,-465.69138028,0.0002,2]
[359756190,1746301849853,-29033.30938028,0.0002,2]
[359756191,1746301850545,-5000.0,0.0002,2]
[359756192,1746301860397,-450.0,0.00019581,2]
[359756193,1746301860420,-559.15,0.00019581,2]
[359756194,1746301860444,-450.0,0.00019595,2]
[359756195,1746301860467,-450.0,0.00019595,2]
[359756196,1746301860490,-450.0,0.00019595,2]
[359756197,1746301860513,-485.81,0.00019596,2]
[359756198,1746301860535,-450.0,0.00019596,2]
[359756199,1746301860557,-555.99,0.00019596,2]
[359756200,1746301860579,-483.03297201,0.00019855,2]
[359756201,1746301860601,-559.15,0.00019855,2]
[359756202,1746301860623,-106.86702799,0.00019869,2]
[359756204,1746301957482,2778.76317119,0.00019,2]
[359756205,1746301961341,2826.4705957,0.00019,2]
[359756206,1746302011732,161.28419144,0.00019481,2]
[359756207,1746302017738,161.28419144,0.00019495,2]
[359756208,1746302036600,1000.0,0.00018906,2]
[359756209,1746302125600,300.0,0.00027397,30]
[359756210,1746302129895,277.74,0.00018902,2]
[359756211,1746302214395,23900.0,0.00018902,2]
[359756212,1746302375282,150.0,0.00032867,60]
[359756213,1746302406783,150.0,0.00032867,60]
[359756214,1746302415007,166.68,0.00019405,2]
[359756215,1746302444322,681.31,0.0001692,2]
[359756216,1746302444542,681.31,0.00019184,2]
[359756217,1746302521212,9129.50850173,0.00019495,2]
[359756218,1746302740008,1234.050405,0.0003287,60]
[359756219,1746302744247,1234.050405,0.0003287,61]
[359756220,1746302747264,1234.050405,0.0003287,62]
[359756221,1746302753443,1234.050405,0.0003287,63]
[359756222,1746302756371,1234.050405,0.0003287,64]
[359756223,1746302759327,1234.050405,0.0003287,65]
[359756224,1746302762940,1234.050405,0.0003287,66]
[359756225,1746302766146,1234.050405,0.0003287,67]
[359756226,1746302769590,1234.050405,0.0003287,68]
[359756227,1746302772902,1234.050405,0.0003287,69]
[359756228,1746302781935,-1200.0,0.00019539,2]
[359756229,1746302781958,-300.0,0.00019539,2]
[359756230,1746302781980,-9129.50850172,0.0001954,2]
[359756231,1746302782002,-200.0,0.00019545,2]
[359756232,1746302782024,-250.0,0.0001955,2]
[359756233,1746302782046,-200.0,0.0001956,2]
[359756234,1746302782068,-203.2957963,0.0001956,2]
[359756235,1746302782093,-200.0,0.0001957,2]
[359756236,1746302782115,-850.0,0.0001958,2]
[359756237,1746302782139,-450.0,0.00019581,2]
[359756238,1746302782162,-450.0,0.00019581,2]
[359756239,1746302782185,-450.0,0.00019581,2]
[359756240,1746302782207,-577.24,0.00019581,2]
[359756241,1746302782231,-450.0,0.00019581,2]
[359756242,1746302782254,-450.0,0.00019581,2]
[359756243,1746302782276,-450.0,0.00019581,2]
[359756244,1746302782298,-765.5,0.00019581,2]
[359756245,1746302782319,-450.0,0.00019581,2]
[359756246,1746302782341,-450.0,0.00019581,2]
[359756247,1746302782363,-450.0,0.00019581,2]
[359756248,1746302782384,-450.0,0.00019581,2]
[359756249,1746302782409,-450.0,0.00019581,2]
[359756250,1746302782432,-450.0,0.00019581,2]
[359756251,1746302782456,-450.0,0.00019581,2]
[359756252,1746302782483,-465.77,0.00019581,2]
[359756253,1746302782505,-450.0,0.00019581,2]
[359756254,1746302782527,-450.0,0.00019581,2]
[359756255,1746302782550,-450.0,0.00019581,2]
[359756256,1746302782575,-450.0,0.00019581,2]
[359756257,1746302782597,-450.0,0.00019581,2]
[359756258,1746302782619,-451.97,0.00019581,2]
[359756259,1746302782641,-450.0,0.00019581,2]
[359756260,1746302782663,-232.03197545,0.00019581,2]
[359756261,1746302782684,-450.0,0.00019581,2]
[359756262,1746302782706,-186.68372653,0.00019581,2]
[359756263,1746302790458,-152.0,0.00019572,2]
[359756264,1746302794137,700.455051,0.00019494,2]
[359756265,1746302797734,-37.763309,0.00019572,2]
[359756266,1746302797758,-364.61440848,0.00019581,2]
[359756267,1746302805991,1234.050405,0.0003287,70]
[359756268,1746302808962,1234.050405,0.0003287,71]
[359756269,1746302811190,398.901083,0.00019483,2]
[359756270,1746302811878,1234.050405,0.0003287,72]
[359756271,1746302815410,1234.050405,0.0003287,73]
[359756272,1746302818977,1234.050405,0.0003287,74]
[359756273,1746302822095,1234.050405,0.0003287,75]
[359756274,1746302826505,1234.050405,0.0003287,76]
[359756275,1746302829490,1234.050405,0.0003287,77]
[359756276,1746302833194,1234.050405,0.0003287,78]
[359756277,1746302839105,1234.050405,0.0003287,79]
[359756278,1746302843846,1234.050405,0.0003287,80]
[359756279,1746302847259,1234.050405,0.0003287,81]
[359756280,1746302849851,1234.050405,0.0003287,82]
[359756281,1746302853164,1234.050405,0.0003287,83]
[359756282,1746302891108,1234.050405,0.0003287,84]
[359756283,1746302894503,1234.050405,0.0003287,85]
[359756284,1746302897454,1234.050405,0.0003287,86]
[359756285,1746302900512,1234.050405,0.0003287,87]
[359756286,1746302903728,1234.050405,0.0003287,88]
[359756287,1746302906997,1234.050405,0.0003287,89]
[359756288,1746302912871,1234.050405,0.0003287,90]
[359756289,1746302915702,1234.050405,0.0003287,91]
[359756290,1746302918650,1234.050405,0.0003287,92]
[359756291,1746302922621,1234.050405,0.0003287,93]
[359756292,1746302925744,1234.050405,0.0003287,94]
[359756293,1746302928929,1234.050405,0.0003287,95]
[359756294,1746302932322,1234.050405,0.0003287,96]
[359756295,1746302935480,1234.050405,0.0003287,97]
[359756296,1746302938813,1234.050405,0.0003287,98]
[359756297,1746302942133,1234.050405,0.0003287,99]
[359756298,1746302946522,1234.050405,0.0003287,100]
[359756299,1746302949648,1234.050405,0.0003287,101]
[359756300,1746302952727,1234.050405,0.0003287,102]
[359756301,1746302955656,1234.050405,0.0003287,103]
[359756302,1746302958745,-187.323863,0.00019572,2]
[359756303,1746302958771,-200.0,0.00019577,2]
[359756304,1746302958798,-300.0,0.0001958,2]
[359756305,1746302958824,-4.69186499,0.00019581,2]
[359756306,1746302958849,-590.01,0.00019581,2]
[359756307,1746302958876,-613.08,0.00019581,2]
[359756308,1746302958902,-450.0,0.00019581,2]
[359756309,1746302958927,-450.0,0.00019581,2]
[359756310,1746302958952,-860.28,0.00019581,2]
[359756311,1746302958977,-450.0,0.00019581,2]
[359756312,1746302959003,-450.0,0.00019581,2]
[359756313,1746302959028,-450.0,0.00019581,2]
[359756314,1746302959054,-450.0,0.00019581,2]
[359756315,1746302959079,-450.0,0.00019581,2]
[359756316,1746302959104,-450.0,0.00019581,2]
[359756317,1746302959130,-450.0,0.00019581,2]
[359756318,1746302959154,-555.4,0.00019581,2]
[359756319,1746302959178,-487.02448323,0.00019581,2]
[359756320,1746302959203,-450.0,0.00019581,2]
[359756321,1746302959227,-450.0,0.00019581,2]
[359756322,1746302959253,-450.0,0.00019581,2]
[359756323,1746302959279,-589.55,0.00019581,2]
[359756324,1746302959304,-450.0,0.00019581,2]
[359756325,1746302959329,-450.0,0.00019581,2]
[359756326,1746302959354,-450.0,0.00019581,2]
[359756327,1746302959380,-450.0,0.00019581,2]
[359756328,1746302959584,-504.08102465,0.00019581,2]
[359756329,1746302959628,-575.12,0.00019581,2]
[359756330,1746302959653,-450.0,0.00019581,2]
[359756331,1746302959678,-518.19,0.00019581,2]
[359756332,1746302959704,-483.55,0.00019581,2]
[359756333,1746302959729,-200.0,0.00019582,2]
[359756334,1746302959754,-151.0,0.00019583,2]
[359756335,1746302959780,-207.4,0.00019583,2]
[359756336,1746302959804,-151.0,0.00019583,2]
[359756337,1746302959828,-668.65185757,0.00019583,2]
[359756338,1746302959853,-984.61165888,0.00019587,2]
[359756339,1746302959877,-15753.59,0.00019588,2]
[359756340,1746302959902,-201.73429737,0.0001959,2]
[359756341,1746302959936,-500.0,0.0001959,2]
[359756342,1746302959970,-500.0,0.0001959,2]
[359756343,1746302960002,-500.0,0.0001959,2]
[359756344,1746302960035,-500.0,0.0001959,2]
[359756345,1746302960068,-500.0,0.0001959,2]
[359756346,1746302960101,-500.0,0.0001959,2]
[359756347,1746302960134,-500.0,0.0001959,2]
[359756348,1746302960166,-500.0,0.0001959,2]
[359756349,1746302960198,-500.0,0.0001959,2]
[359756350,1746302960230,-500.0,0.0001959,2]
[359756351,1746302960262,-500.0,0.0001959,2]
[359756352,1746302960294,-500.0,0.0001959,2]
[359756353,1746302960327,-500.0,0.0001959,2]
[359756354,1746302960359,-500.0,0.0001959,2]
[359756355,1746302960396,-500.0,0.0001959,2]
[359756356,1746302960428,-63.71095031,0.0001959,2]
[359756357,1746302960510,1234.050405,0.0003287,104]
[359756358,1746302964663,1234.050405,0.0003287,105]
[359756359,1746302968156,1234.050405,0.0003287,106]
[359756360,1746302971547,1234.050405,0.0003287,107]
[359756361,1746302974837,1234.050405,0.0003287,108]
[359756362,1746302978160,1234.050405,0.0003287,109]
[359756363,1746302981951,1234.050405,0.0003287,110]
[359756364,1746302985160,1234.050405,0.0003287,111]
[359756365,1746302988306,1234.050405,0.0003287,112]
[359756366,1746302991379,1234.050405,0.0003287,113]
[359756367,1746302995289,1234.050405,0.0003287,114]
[359756368,1746302998365,1234.050405,0.0003287,115]
[359756369,1746303001438,1234.050405,0.0003287,116]
[359756370,1746303005311,1234.050405,0.0003287,117]
[359756371,1746303011032,1234.050405,0.0003287,118]
[359756372,1746303014666,1234.050405,0.0003287,119]
[359756373,1746303019798,1234.050405,0.0003287,120]
[359756376,1746303031780,-598.20233049,0.00019566,2]
[359756377,1746303031792,-601.79766951,0.00019566,2]
[359756378,1746303031801,-300.0,0.00019566,2]
[359756379,1746303031810,-300.0,0.00019566,2]
[359756380,1746303031819,-3273.07204919,0.00019567,2]
[359756381,1746303031836,-2783.80509327,0.00019567,2]
[359756382,1746303031847,-7616.91171774,0.00019567,2]
[359756383,1746303031858,-10680.67888542,0.00019567,2]
[359756384,1746303031869,-18059.3354817,0.00019567,2]
[359756385,1746303031880,-271.89861931,0.00019567,2]
[359756386,1746303031891,-574.42573208,0.00019567,2]
[359756387,1746303031906,-482.04961099,0.00019567,2]
[359756388,1746303031935,-2354.8,0.00019567,2]
[359756426,1746303032391,-313.24757137,0.00019567,2]
[359756428,1746303032402,-3777.71549535,0.00019567,2]
[359756430,1746303032413,-1952.72595287,0.00019567,2]
[359756433,1746303032425,-1798.17442008,0.00019567,2]
[359756435,1746303032435,-758.63257687,0.00019567,2]
[359756437,1746303032446,-3206.74592836,0.00019567,2]
[359756468,1746303032734,-0.5,0.00019567,2]
[359756470,1746303032745,-2002.65164984,0.00019567,2]
[359756472,1746303032756,-576.06172166,0.00019567,2]
[359756474,1746303032766,-200.0,0.00019579,2]
[359756476,1746303032775,-200.0,0.00019588,2]
[359756478,1746303032784,-1991.6063941,0.00019591,2]
[359756480,1746303032794,-2553.33000917,0.00019591,2]
[359756495,1746303040126,-3923.04359673,0.00019591,2]
[359756496,1746303040135,-150.99,0.00019594,2]
[359756497,1746303040145,-4858.06,0.00019594,2]
[359756498,1746303040154,-450.0,0.00019594,2]
[359756499,1746303040163,-194.65,0.00019594,2]
[359756500,1746303040172,-481.47,0.00019594,2]
[359756501,1746303040181,-450.0,0.00019594,2]
[359756502,1746303040197,-268.04,0.00019594,2]
[359756503,1746303040210,-450.0,0.00019594,2]
[359756504,1746303040487,-450.0,0.00019594,2]
[359756505,1746303040497,-560.25,0.00019594,2]
[359756506,1746303040507,-514.89,0.00019594,2]
[359756507,1746303040516,-450.0,0.00019594,2]
[359756508,1746303040526,-450.0,0.00019594,2]
[359756509,1746303040537,-5307.41,0.00019594,2]
[359756510,1746303040551,-266.44407434,0.00019594,2]
[359756511,1746303040578,-183.55592566,0.00019594,2]
[359756512,1746303040588,-450.0,0.00019594,2]
[359756513,1746303040597,-720.19,0.00019594,2]
[359756514,1746303040607,-450.0,0.00019594,2]
[359756515,1746303040617,-1785.18,0.00019594,2]
[359756516,1746303040627,-450.0,0.00019594,2]
[359756517,1746303040636,-561.971589,0.00019594,2]
[359756518,1746303040646,-667.39,0.00019594,2]
[359756519,1746303040655,-4084.64,0.00019594,2]
[359756520,1746303040665,-379.52662,0.00019594,2]
[359756521,1746303040674,-450.0,0.00019594,2]
[359756522,1746303040683,-4153.24,0.00019595,2]
[359756523,1746303040692,-450.0,0.00019595,2]
[359756524,1746303040702,-450.0,0.00019595,2]
[359756525,1746303040711,-450.0,0.00019595,2]
[359756526,1746303040720,-450.0,0.00019595,2]
[359756527,1746303040729,-450.0,0.00019595,2]
[359756528,1746303040739,-450.0,0.00019595,2]
[359756529,1746303040749,-642.63,0.00019595,2]
[359756530,1746303040758,-450.0,0.00019595,2]
[359756531,1746303040767,-450.0,0.00019595,2]
[359756532,1746303040776,-450.0,0.00019595,2]
[359756533,1746303040786,-454.78459354,0.00019595,2]
[359756534,1746303040795,-844.84,0.00019595,2]
[359756535,1746303040805,-473.81,0.00019595,2]
[359756536,1746303040814,-450.0,0.00019595,2]
[359756537,1746303040823,-526.06,0.00019595,2]
[359756538,1746303040832,-450.0,0.00019595,2]
[359756539,1746303040841,-693.22,0.00019595,2]
[359756540,1746303040851,-451.02,0.00019595,2]
[359756541,1746303040860,-196.3745295,0.00019595,2]
[359756542,1746303040869,-450.0,0.00019595,2]
[359756543,1746303040878,-450.0,0.00019595,2]
[359756544,1746303040888,-450.0,0.00019595,2]
[359756545,1746303040897,-450.0,0.00019595,2]